Body Name,Body,Service Level,Expense Type,Expense Code,Narrative,Date,Transaction Number,Amount,Capital and Revenue,Supplier Name,Supplier ID
South Ribble Borough Council,http://statistics.data.gov.uk/id/local-authority/30UE,Central Support Services,Materials General,4040,2x rear discs  1 x pads  1 x drivers mirror 1 x wide angle mirror  VA19 KOX JFC 19121,21/10/2022,0000482411,521.55,Revenue,A & P Truck & Trailer Parts,0
South Ribble Borough Council,http://statistics.data.gov.uk/id/local-authority/30UE,Central Support Services,Materials General,4040,3 xBin No.538 - Brake pad 3 xBin No.539- Brake Pad 2 xBIn 541 - Brake Pad 2 X Sensor Bin 542,28/10/2022,0000482502,540.00,Revenue,A & P Truck & Trailer Parts,0
South Ribble Borough Council,http://statistics.data.gov.uk/id/local-authority/30UE,Development Control,Consultancy Fees,4541,Sound system for public inquiry,21/10/2022,0000482196,"1,942.00",Revenue,ACTIVE AV LTD,0
South Ribble Borough Council,http://statistics.data.gov.uk/id/local-authority/30UE,Recreation & Sport,Publicity & Promotion,4842,for Outputs on ESF for Quarters 1 and 2,21/10/2022,0000482480,879.00,Revenue,ACTIVE LANCASHIRE,0
South Ribble Borough Council,http://statistics.data.gov.uk/id/local-authority/30UE,Economic Development,Operational Equip & Tools,4010,Generators and Trailer for Taste of Leyland event,14/10/2022,0000482116,417.90,Revenue,Adlington Welding Supplies Ltd,0
South Ribble Borough Council,http://statistics.data.gov.uk/id/local-authority/30UE,Central Support Services,Reactive Repair & Maintenance,2020,Civic Centre To replace a hot tap in the Gateway toilet.To Replace the syphon on the Business Centre disabled toilet.,28/10/2022,0000482582,280.00,Revenue,Ainscoe Plumbing & Heating Ltd,0
South Ribble Borough Council,http://statistics.data.gov.uk/id/local-authority/30UE,Surplus or Deficit on Trading,Reactive Repair & Maintenance,2020,Moss Side Community Centre - as per NAME REDACTED request supply and fit new booster pump with negative head for hot water ,28/10/2022,0000482583,530.00,Revenue,Ainscoe Plumbing & Heating Ltd,0
South Ribble Borough Council,http://statistics.data.gov.uk/id/local-authority/30UE,Open Spaces,External Contractors Charges,4570,To carry out the cutting/collection of meadows in South Ribble,14/10/2022,0000482143,"6,083.00",Revenue,ALBEN LANDSCAPES,0
South Ribble Borough Council,http://statistics.data.gov.uk/id/local-authority/30UE,Local Tax Collection,Bank Charges,4811,post office,14/10/2022,0000482250,529.46,Revenue,ALLPAY LTD,0
South Ribble Borough Council,http://statistics.data.gov.uk/id/local-authority/30UE,Local Tax Collection,Bank Charges,4811,paypoint,14/10/2022,0000482250,75.45,Revenue,ALLPAY LTD,0
South Ribble Borough Council,http://statistics.data.gov.uk/id/local-authority/30UE,Local Tax Collection,Bank Charges,4811,webconn,14/10/2022,0000482250,46.00,Revenue,ALLPAY LTD,0
South Ribble Borough Council,http://statistics.data.gov.uk/id/local-authority/30UE,Central Support Services,Agency Staff,1121,Agency Staff w/e 25/09/2022,07/10/2022,0000482193,"8,058.70",Revenue,ALS Managed Services Ltd,0
South Ribble Borough Council,http://statistics.data.gov.uk/id/local-authority/30UE,Central Support Services,Agency Staff,1121,Agency Staff w/e 14/08/2022,14/10/2022,0000482277,"7,851.40",Revenue,ALS Managed Services Ltd,0
South Ribble Borough Council,http://statistics.data.gov.uk/id/local-authority/30UE,Recreation & Sport,Water Charges(Metered),2511,7/8 to 6/9/22,07/10/2022,0000482117,"1,288.27",Revenue,Anglian Water Business (National) t/as Wave Utilit,0
South Ribble Borough Council,http://statistics.data.gov.uk/id/local-authority/30UE,Recreation & Sport,Water Charges(Metered),2511,7/9 to 6/10/22,28/10/2022,0000482574,859.02,Revenue,Anglian Water Business (National) t/as Wave Utilit,0
South Ribble Borough Council,http://statistics.data.gov.uk/id/local-authority/30UE,Recreation & Sport,Water Charges(Metered),2511,7/9 to 6/10/22,28/10/2022,0000482575,316.20,Revenue,Anglian Water Business (National) t/as Wave Utilit,0
South Ribble Borough Council,http://statistics.data.gov.uk/id/local-authority/30UE,Recreation & Sport,Water Charges(Metered),2511,7/* to 6/10/22,28/10/2022,0000482576,901.21,Revenue,Anglian Water Business (National) t/as Wave Utilit,0
South Ribble Borough Council,http://statistics.data.gov.uk/id/local-authority/30UE,Recreation & Sport,Water Charges(Metered),2511,7/9 to 6/10/22,28/10/2022,0000482577,"1,262.10",Revenue,Anglian Water Business (National) t/as Wave Utilit,0
South Ribble Borough Council,http://statistics.data.gov.uk/id/local-authority/30UE,Recreation & Sport,Water Charges(Metered),2511,7/9 to 6/10/22,28/10/2022,0000482578,739.94,Revenue,Anglian Water Business (National) t/as Wave Utilit,0
South Ribble Borough Council,http://statistics.data.gov.uk/id/local-authority/30UE,Capital,Capital Grant,C570,DFG WORK FOR ADAPTATION FOR LEVE ACCESS BATHROOM AT ADDRESS REDACTED AS PER SRBC PLANS AND QUOTE SUPPLIED,14/10/2022,0000482205,"5,965.00",Revenue,APG DOMESTIC SERVICES,0
South Ribble Borough Council,http://statistics.data.gov.uk/id/local-authority/30UE,Central Support Services,Combined Liability,1801,SRBC Waste additional premium for Combined Liability Protector Insurance UK - Contract No,07/10/2022,0000482049,"12,665.23",Revenue,Arthur J. Gallagher,0
South Ribble Borough Council,http://statistics.data.gov.uk/id/local-authority/30UE,Capital,Capital Grant,C570,DFG WORK FOR ADAPTATION FOR LEVEL ACCESS SHOWER AT ADDRESS REDACTED AS PER SRBC PLANS AND QUOTE SUPPLIED,28/10/2022,0000482628,"5,000.00",Revenue,Bambers Remedial Contractors Ltd,0
South Ribble Borough Council,http://statistics.data.gov.uk/id/local-authority/30UE,Open Spaces,Plants Trees & Shrubs,4046,"Plants for Worden Park, Bellis Way and Hurst Grange Park as per list to be emailed with the order ",14/10/2022,0000479944,"11,237.20",Revenue,BANNISTER HALL LANDSCAPE SUPPLIES,0
South Ribble Borough Council,http://statistics.data.gov.uk/id/local-authority/30UE,Economic Development,Public Relations Strategy,4848,We love South Ribble airtime,07/10/2022,0000482139,"4,151.52",Revenue,BAUER RADIO LTD,0
South Ribble Borough Council,http://statistics.data.gov.uk/id/local-authority/30UE,Economic Development,Public Relations Strategy,4848,We love South Ribble airtime,07/10/2022,0000482140,937.92,Revenue,BAUER RADIO LTD,0
South Ribble Borough Council,http://statistics.data.gov.uk/id/local-authority/30UE,Recreation & Sport,Publicity & Promotion,4842,"Supply of bespoke equipment packages, with direct delivery to schools. ",14/10/2022,0000481977,"2,105.25",Revenue,Bishop Sports & Leisure Ltd,0
South Ribble Borough Council,http://statistics.data.gov.uk/id/local-authority/30UE,Capital,Cap Contract Payment,C230,"Description - tennis centre works - Document production for tennis centre carpark contract, as per NAME REDACTED",28/10/2022,0000476825,"1,000.00",Revenue,BRAMLEY-PATE & PARTNERS,0
South Ribble Borough Council,http://statistics.data.gov.uk/id/local-authority/30UE,Central Support Services,Planned Annual Repair & Maintenance,2021,Order to cover invoices to cover outstanding utilities as per Judge and Priestley letter ,14/10/2022,0000481929,"5,136.27",Revenue,BRITISH GAS SERVICES (COMMERCIAL) LTD,0
South Ribble Borough Council,http://statistics.data.gov.uk/id/local-authority/30UE,Central Support Services,Planned Annual Repair & Maintenance,2021,Order to cover invoices to cover outstanding utilities as per Judge and Priestley letter ,14/10/2022,0000481937,581.00,Revenue,BRITISH GAS SERVICES (COMMERCIAL) LTD,0
South Ribble Borough Council,http://statistics.data.gov.uk/id/local-authority/30UE,Central Support Services,Materials General,4040,20x Broxap�s Derby Slim 90 Litter Bin ,28/10/2022,0000482432,"5,960.00",Revenue,BROXAP LTD,0
South Ribble Borough Council,http://statistics.data.gov.uk/id/local-authority/30UE,Central Support Services,Materials General,4040,40LT HERCULES LITTER BIN (BLUE) BX45 2556-40,28/10/2022,0000482433,"1,290.00",Revenue,BROXAP LTD,0
South Ribble Borough Council,http://statistics.data.gov.uk/id/local-authority/30UE,Central Support Services,Materials General,4040,"1x brush motor and 1x hopper flap, GX19 DZF, JFC18997",21/10/2022,0000481946,367.86,Revenue,Bucher Municipal Ltd,0
South Ribble Borough Council,http://statistics.data.gov.uk/id/local-authority/30UE,Economic Development,Operational Equip & Tools,4010,"Marquee, tables and chairs for A Taste of Leyland event",07/10/2022,0000481639,"1,735.00",Revenue,C K Marquees,0
South Ribble Borough Council,http://statistics.data.gov.uk/id/local-authority/30UE,Central Support Services,Agency Staff,1121,Planning consultant to deal with Cuerdale Garden Village application.,21/10/2022,0000482007,"1,173.00",Revenue,CAPITA PROPERTY AND INFRASTRUCTURE LTD,0
South Ribble Borough Council,http://statistics.data.gov.uk/id/local-authority/30UE,Central Support Services,Agency Staff,1121,EXTERNAL SUPPORT FOR REVENUES,28/10/2022,0000482138,"8,054.50",Revenue,CAPITA RESOURCING LTD,0
South Ribble Borough Council,http://statistics.data.gov.uk/id/local-authority/30UE,Short Term Debtors,Amount Paid,0030,cycle to work NAME REDACTED,14/10/2022,0000481981,382.43,Revenue,CHORLEY BOROUGH COUNCIL,0
South Ribble Borough Council,http://statistics.data.gov.uk/id/local-authority/30UE,Open Spaces,External Contractors Charges,4570,SRBC Planning Related Tree Requests Dealt With By NAME REDACTED at CBC (April to September 2022),14/10/2022,0000482209,"1,646.40",Revenue,CHORLEY BOROUGH COUNCIL,0
South Ribble Borough Council,http://statistics.data.gov.uk/id/local-authority/30UE,Open Spaces,External Contractors Charges,4570,SRBC Planning Related Tree Requests Dealt With By NAME REDACTED at CBC (April to September 2022),14/10/2022,0000482210,598.11,Revenue,CHORLEY BOROUGH COUNCIL,0
South Ribble Borough Council,http://statistics.data.gov.uk/id/local-authority/30UE,Open Spaces,External Contractors Charges,4570,SRBC Planning Related Tree Requests Dealt With By NAME REDACTED at CBC (April to September 2022),14/10/2022,0000482211,"1,074.02",Revenue,CHORLEY BOROUGH COUNCIL,0
South Ribble Borough Council,http://statistics.data.gov.uk/id/local-authority/30UE,Central Support Services,Intruder Alarm,2035,For CCTV at MSD not put on PPM for 2022/2023 when order created. To cover invoice 9506527 and contract number 1584740,21/10/2022,0000481591,"1,112.33",Revenue,CHUBB LTD,0
South Ribble Borough Council,http://statistics.data.gov.uk/id/local-authority/30UE,Central Support Services,Materials General,4040,Gear Selector pad MX04 YNL JFC 19118,28/10/2022,0000482546,"1,338.60",Revenue,CICELEY COMMERCIALS LTD,0
South Ribble Borough Council,http://statistics.data.gov.uk/id/local-authority/30UE,Central Support Services,Materials General,4040,Service Kit PO70 YOG JFC 19119,28/10/2022,0000482616,286.91,Revenue,CICELEY COMMERCIALS LTD,0
South Ribble Borough Council,http://statistics.data.gov.uk/id/local-authority/30UE,Central Support Services,Short Course,1402,Attendance of the CIPFA Summer Internal Audit Update- 30/06/2022,21/10/2022,0000481355,525.00,Revenue,CIPFA BUSINESS LTD,0
South Ribble Borough Council,http://statistics.data.gov.uk/id/local-authority/30UE,Central Support Services,Software Licensing,4243,CivicaPay - Annual Subscription - 3DSV2 - Year 1 (Go live - 29/09/2022),14/10/2022,0000481458,934.00,Revenue,CIVICA UK LTD,0
South Ribble Borough Council,http://statistics.data.gov.uk/id/local-authority/30UE,Central Support Services,Software Licensing,4243,Opayo upgrade   Services to allow transition to new payment gateway shall be provided following the payment of the one-off fee,28/10/2022,0000481753,"3,000.00",Revenue,CIVICA UK LTD,0
South Ribble Borough Council,http://statistics.data.gov.uk/id/local-authority/30UE,Central Support Services,Software Licensing,4243,CivicaPay - Annual Subscriptions,21/10/2022,0000482006,"18,125.00",Revenue,CIVICA UK LTD,0
South Ribble Borough Council,http://statistics.data.gov.uk/id/local-authority/30UE,Homelessness,Temporary Accommodation,5311,NAME REDACTED 14 nights ,21/10/2022,0000482369,630.00,Revenue,CLAREMONT HOTEL,0
South Ribble Borough Council,http://statistics.data.gov.uk/id/local-authority/30UE,Homelessness,Temporary Accommodation,5311,B&B accommodation 27/9-3/10/2022 7 nights,21/10/2022,0000482370,"2,022.00",Revenue,CLAREMONT HOTEL,0
South Ribble Borough Council,http://statistics.data.gov.uk/id/local-authority/30UE,Homelessness,Temporary Accommodation,5311,B&B accommodation 20/9-26/9/2022 7 nights,21/10/2022,0000482371,"2,022.00",Revenue,CLAREMONT HOTEL,0
South Ribble Borough Council,http://statistics.data.gov.uk/id/local-authority/30UE,Homelessness,Temporary Accommodation,5311,B&B accommodation 6/9-12/9/2022,21/10/2022,0000482372,"2,337.00",Revenue,CLAREMONT HOTEL,0
South Ribble Borough Council,http://statistics.data.gov.uk/id/local-authority/30UE,Capital,Cap Contract Payment,C230,Completion of sale & legal fees,14/10/2022,0000482278,"159,047.50",Revenue,Clifford Wilson and Michael Iddon,0
South Ribble Borough Council,http://statistics.data.gov.uk/id/local-authority/30UE,Capital,Capital Grant,C570,SUPPLY AND INSTALL SPECIALIST TOILET AT ADDRESS REDACTED AS PER QUOTE SUPPLIED,07/10/2022,0000482122,"4,603.00",Revenue,Closomat Limited,0
South Ribble Borough Council,http://statistics.data.gov.uk/id/local-authority/30UE,Community Development,Professional Fees,4510,Activity camps for HAF. 25 July to 16 August,28/10/2022,0000482485,"5,600.00",Revenue,Community Network and Outreach,0
South Ribble Borough Council,http://statistics.data.gov.uk/id/local-authority/30UE,Capital,Cap Contract Payment,C230,Leyland Town Deal - Operational Energy Assessment,28/10/2022,0000482612,"6,500.00",Revenue,Complete Sustainability Solutions Ltd,0
South Ribble Borough Council,http://statistics.data.gov.uk/id/local-authority/30UE,Waste Collection,External Contractors Charges,4570,1080 units (3 pallets) x Yellow rigid lid ,07/10/2022,0000481250,"2,602.80",Revenue,Coral Mouldings (Product) Ltd,0
South Ribble Borough Council,http://statistics.data.gov.uk/id/local-authority/30UE,Central Support Services,Mobile Devices Hardware,4244,100 x Apple iPhone SE (2nd Gen) -Armour TPU Mobile Phone Case 40 x Samsung Galaxy A21s � Rugged Tyre Case,28/10/2022,0000481457,798.00,Revenue,Corptel Direct( Europe) Ltd,0
South Ribble Borough Council,http://statistics.data.gov.uk/id/local-authority/30UE,Central Support Services,Computer Equipment,4241,40 x 10.9-inch iPad Air Wi-Fi + Cellular 64GB - Space Grey ,28/10/2022,0000481460,"24,201.35",Revenue,Corptel Direct( Europe) Ltd,0
South Ribble Borough Council,http://statistics.data.gov.uk/id/local-authority/30UE,Central Support Services,Miscellaneous Expenses,4851,"Serve and evict travellers from SRBC Land at Bamber Bridge leisure centre, Preston PR56YJ",21/10/2022,0000482410,"5,600.00",Revenue,Court Enforcement Specialists Ltd,0
South Ribble Borough Council,http://statistics.data.gov.uk/id/local-authority/30UE,Local Tax Collection,Postage General,4291,POSTAGE FOR AUG 2022 TO MARCH 2023,14/10/2022,0000482168,402.28,Revenue,CRITIQOM,0
South Ribble Borough Council,http://statistics.data.gov.uk/id/local-authority/30UE,Local Tax Collection,Postage General,4291,POSTAGE FOR AUG 2022 TO MARCH 2023,14/10/2022,0000482275,736.70,Revenue,CRITIQOM,0
South Ribble Borough Council,http://statistics.data.gov.uk/id/local-authority/30UE,Local Tax Collection,Postage General,4291,POSTAGE FOR AUG 2022 TO MARCH 2023,28/10/2022,0000482580,536.33,Revenue,CRITIQOM,0
South Ribble Borough Council,http://statistics.data.gov.uk/id/local-authority/30UE,Regulatory Services,Other Fees,4520,South Ribble full hackney demand survey 2022,14/10/2022,0000480482,"4,720.00",Revenue,CTS Traffic & Transportation Ltd,0
South Ribble Borough Council,http://statistics.data.gov.uk/id/local-authority/30UE,Capital,Cap Materials,C231,40 x Logitech iPad air 10.92 folio case product code N562622W,14/10/2022,0000481560,"4,666.00",Revenue,Currys Group Limited,0
South Ribble Borough Council,http://statistics.data.gov.uk/id/local-authority/30UE,Central Support Services,Computer Equipment,4241,19 x iPad air 5th Gen 10.9`` wifi cellular.,21/10/2022,0000482246,"11,384.04",Revenue,Currys Group Limited,0
South Ribble Borough Council,http://statistics.data.gov.uk/id/local-authority/30UE,Central Support Services,Planned Annual Repair & Maintenance,2021,Annual Contract for maintenance 2022/2023 of 1 x  McSmart 240cr Industrial Water Chiller  and 1 x McQuay Air Handling Unit ,28/10/2022,0000482587,719.32,Revenue,DAIKIN APPLIED SERVICE,0
South Ribble Borough Council,http://statistics.data.gov.uk/id/local-authority/30UE,Recreation & Sport,Materials General,4040,Supply of 24 x Zinc Backbone Stunt Scooter ,14/10/2022,0000481867,671.76,Revenue,Decathlon,0
South Ribble Borough Council,http://statistics.data.gov.uk/id/local-authority/30UE,Central Support Services,Materials General,4040,1x Spring 2x U Bolts 4x Nuts 2x Pins 1x Nut VU60 HLE JFC 19026,07/10/2022,0000481969,816.29,Revenue,DENNIS EAGLE LTD,0
South Ribble Borough Council,http://statistics.data.gov.uk/id/local-authority/30UE,Central Support Services,Materials General,4040,seatbelt buckle header tank tank hose coolant level sensor VU11 HSZ JFC 19032,07/10/2022,0000482059,346.04,Revenue,DENNIS EAGLE LTD,0
South Ribble Borough Council,http://statistics.data.gov.uk/id/local-authority/30UE,Central Support Services,Materials General,4040,Window reg VA19 KOX JFC 19098,21/10/2022,0000482214,298.98,Revenue,DENNIS EAGLE LTD,0
South Ribble Borough Council,http://statistics.data.gov.uk/id/local-authority/30UE,Capital,Cap Contract Payment,C230,fabrication & installation of steel protective pipework covers at Gregson Lane new changing facility as per NAME REDACTED,07/10/2022,0000481933,"1,500.00",Revenue,DP STRUCTURES LTD,0
South Ribble Borough Council,http://statistics.data.gov.uk/id/local-authority/30UE,Community Development,Core Fund,4861,"Material for post  3mm brass ( 8 off )  2. Laser cutting names , DXF / dressing off , and Verdigris patina.  3. Labour for installation",28/10/2022,0000481934,"3,000.00",Revenue,DP STRUCTURES LTD,0
South Ribble Borough Council,http://statistics.data.gov.uk/id/local-authority/30UE,Central Support Services,Lifts - R&M,2032,Annual contract 2022/23 for the maintenance of the lifts at the Civic Centre with visit dates to be done 1ST Visit,28/10/2022,0000482589,447.50,Revenue,E A Foulds Limited,0
South Ribble Borough Council,http://statistics.data.gov.uk/id/local-authority/30UE,Central Support Services,External Contractors Charges,4570,"Supply and install workshop bench, drawer units and shelving units BJ66SKX JFC18940",28/10/2022,0000482516,"2,982.00",Revenue,E. O`Donnell T/A Trailscot,0
South Ribble Borough Council,http://statistics.data.gov.uk/id/local-authority/30UE,Open Spaces,Commemorative Features,4019,1 X Evergreen cast iron framed seat 1800mm long with black cast iron frames and forest-saver seat slats ,14/10/2022,0000481657,625.00,Revenue,EARTH ANCHORS LTD,0
South Ribble Borough Council,http://statistics.data.gov.uk/id/local-authority/30UE,Open Spaces,Commemorative Features,4019,"1x Forest-saver steel framed seat, 1800 mm long with black frames and forest-saver seat slats",14/10/2022,0000481657,365.00,Revenue,EARTH ANCHORS LTD,0
South Ribble Borough Council,http://statistics.data.gov.uk/id/local-authority/30UE,Open Spaces,GM Refurbishment,4657,"3 x Forest- saver round picnic table, made from brown material throughout, standard type ",14/10/2022,0000481657,"1,740.00",Revenue,EARTH ANCHORS LTD,0
South Ribble Borough Council,http://statistics.data.gov.uk/id/local-authority/30UE,Open Spaces,GM Refurbishment,4657,"2x Forest saver round picnic table, mobility wheelchair access type, made from brown material throughout, standard type",14/10/2022,0000481657,"1,160.00",Revenue,EARTH ANCHORS LTD,0
South Ribble Borough Council,http://statistics.data.gov.uk/id/local-authority/30UE,Open Spaces,Commemorative Features,4019,"Delivery charge for above, supplied on pallets",14/10/2022,0000481657,120.00,Revenue,EARTH ANCHORS LTD,0
South Ribble Borough Council,http://statistics.data.gov.uk/id/local-authority/30UE,Capital,Cap Contract Payment,C230,Hardware and install at sites in SRBC area - per NAME REDACTED,14/10/2022,0000481916,"9,932.00",Revenue,EB Charging Ltd,0
South Ribble Borough Council,http://statistics.data.gov.uk/id/local-authority/30UE,Capital,Cap Contract Payment,C230,"BREEAM AP consultancy services RIBA Stage 3-6 - Jubilee Gardens Extra Care Project, West Paddock in Leyland",21/10/2022,0000482321,"1,000.00",Revenue,Energy Council Ltd is a Trading Name of EC Energy,0
South Ribble Borough Council,http://statistics.data.gov.uk/id/local-authority/30UE,Capital,Cap Contract Payment,C230,McKenzie Arms (MEP) Client Side Monitoring Stage 5/6,21/10/2022,0000480486,"1,000.00",Revenue,Envision Energy Ltd,0
South Ribble Borough Council,http://statistics.data.gov.uk/id/local-authority/30UE,Capital,Cap Contract Payment,C230,McKenzie Arms (MEP) Client Side Monitoring Stage 5/6,21/10/2022,0000480927,"1,000.00",Revenue,Envision Energy Ltd,0
South Ribble Borough Council,http://statistics.data.gov.uk/id/local-authority/30UE,Capital,Cap Contract Payment,C230,McKenzie Arms (MEP) Client Side Monitoring Stage 5/6,21/10/2022,0000481813,500.00,Revenue,Envision Energy Ltd,0
South Ribble Borough Council,http://statistics.data.gov.uk/id/local-authority/30UE,Central Support Services,Materials General,4040,Cutting motor PO16 HMX JFC 18955,14/10/2022,0000482061,436.80,Revenue,F R SHARROCK LTD,0
South Ribble Borough Council,http://statistics.data.gov.uk/id/local-authority/30UE,Central Support Services,Materials General,4040,Height adjuster  PO16 HMV JFC 18963,14/10/2022,0000482061,14.28,Revenue,F R SHARROCK LTD,0
South Ribble Borough Council,http://statistics.data.gov.uk/id/local-authority/30UE,Central Support Services,Materials General,4040,12x Sole plate BIN 1265,14/10/2022,0000482061,255.84,Revenue,F R SHARROCK LTD,0
South Ribble Borough Council,http://statistics.data.gov.uk/id/local-authority/30UE,Central Support Services,Materials General,4040,Sole plate screws Bin 1114,14/10/2022,0000482061,29.40,Revenue,F R SHARROCK LTD,0
South Ribble Borough Council,http://statistics.data.gov.uk/id/local-authority/30UE,Central Support Services,Materials General,4040,FOOTBALL PITCH LINE MARKER PAINT 10LTRS. PITCHMARKER Q2,07/10/2022,0000482145,511.68,Revenue,Fleet Line Markers Limited,0
South Ribble Borough Council,http://statistics.data.gov.uk/id/local-authority/30UE,Surplus or Deficit on Trading,Reactive Repair & Maintenance,2020,COMP/G/PLATES/180 Complete ground plate hinged 180 sq galvanised as per quote 7/2022 -0732,28/10/2022,0000482591,535.00,Revenue,GLASSFIBRE FLAGPOLES LTD,0
South Ribble Borough Council,http://statistics.data.gov.uk/id/local-authority/30UE,Open Spaces,GM Refurbishment,4657,for the supply and fitting of x4 ceiling fans with controls in the conservatory at Worden Park.,28/10/2022,0000482395,"6,388.00",Revenue,HARRIER GARDEN DEVELOPMENTS LTD,0
South Ribble Borough Council,http://statistics.data.gov.uk/id/local-authority/30UE,Corporate Management,Agency Staff,1121,NAME REDACTED- 24 week contract ,28/10/2022,0000482219,"2,208.00",Revenue,Hays Specialist Recruitment Ltd,0
South Ribble Borough Council,http://statistics.data.gov.uk/id/local-authority/30UE,Corporate Management,Agency Staff,1121,NAME REDACTED- 24 week contract ,28/10/2022,0000482335,"2,760.00",Revenue,Hays Specialist Recruitment Ltd,0
South Ribble Borough Council,http://statistics.data.gov.uk/id/local-authority/30UE,Capital,Cap Contract Payment,C230,SDLT for property transaction at Quin Street (:eyland town deal) LAN241623,28/10/2022,0000482649,445.00,Revenue,HM REVENUE & CUSTOMS,0
South Ribble Borough Council,http://statistics.data.gov.uk/id/local-authority/30UE,Open Spaces,GM Refurbishment,4657,1x Cricket Ball Stop Net 6m x 50m in 40/40/2.3mm in High tenacity polypropylene.,28/10/2022,0000482610,640.00,Revenue,Huck Tek T/A a Division of Huck Nets (UK) Ltd,0
South Ribble Borough Council,http://statistics.data.gov.uk/id/local-authority/30UE,Elections,Electoral Administration Act,4970,Idox Elections - Offset by Credit 7039016,21/10/2022,0000479962,950.00,Revenue,IDOX PLC,0
South Ribble Borough Council,http://statistics.data.gov.uk/id/local-authority/30UE,Economic Development,Professional Fees,4510,6 engagement sessions for the economy,07/10/2022,0000482064,"3,250.00",Revenue,iMeg Partnership,0
South Ribble Borough Council,http://statistics.data.gov.uk/id/local-authority/30UE,Capital,Capital Grant,C570,DFG WORK FOR ADAPTATION FOR SPECIALIST TOILET AT ADDRESS REDACTED AS PER QUOTE SUPPLIED ,28/10/2022,0000482627,"3,960.00",Revenue,Independent Adaptations Ltd,0
South Ribble Borough Council,http://statistics.data.gov.uk/id/local-authority/30UE,Capital,Capital Grant,C570,DFG WORK FOR ADAPTATION TO LEVEL ACCESS SHOWER AT ADDRESS REDACTED AS  PER SRBC,28/10/2022,0000482638,"2,170.88",Revenue,J C Construction Ltd,0
South Ribble Borough Council,http://statistics.data.gov.uk/id/local-authority/30UE,Surplus or Deficit on Trading,Planned Annual Repair & Maintenance,2021,Annual Contract for 2022 - 2023 for the maintenance of the Trend BMS HVAC 4 x day visits,28/10/2022,0000482592,445.00,Revenue,JBC CONTROL SYSTEM,0
South Ribble Borough Council,http://statistics.data.gov.uk/id/local-authority/30UE,Capital,Cap Contract Payment,C230,Reconstruction of Gable end wall at Farmyard Cottages,21/10/2022,0000482455,"10,350.00",Revenue,John Wade Groundworks Ltd t/a Wade Group,0
South Ribble Borough Council,http://statistics.data.gov.uk/id/local-authority/30UE,Central Support Services,Clothing and Uniforms,4410,GLOVES � RUBBER RIGGERS EN388:2003 (SIZE 9 ) A300,28/10/2022,0000482500,53.00,Revenue,KEY ENGINEERING & HYGIENE SUPPLIES LTD,0
South Ribble Borough Council,http://statistics.data.gov.uk/id/local-authority/30UE,Central Support Services,Clothing and Uniforms,4410,GLOVES � RUBBER RIGGERS EN388:2003 (SIZE 10) A300,28/10/2022,0000482500,53.00,Revenue,KEY ENGINEERING & HYGIENE SUPPLIES LTD,0
South Ribble Borough Council,http://statistics.data.gov.uk/id/local-authority/30UE,Central Support Services,Clothing and Uniforms,4410, GLOVES - WINTER HV EN388 2.2.4.3  SIZE 8  A185,28/10/2022,0000482500,69.00,Revenue,KEY ENGINEERING & HYGIENE SUPPLIES LTD,0
South Ribble Borough Council,http://statistics.data.gov.uk/id/local-authority/30UE,Central Support Services,Clothing and Uniforms,4410, GLOVES - WINTER HV EN388 2.2.4.3  SIZE 9  A185,28/10/2022,0000482500,138.00,Revenue,KEY ENGINEERING & HYGIENE SUPPLIES LTD,0
South Ribble Borough Council,http://statistics.data.gov.uk/id/local-authority/30UE,Central Support Services,Clothing and Uniforms,4410, GLOVES - WINTER HV EN388 2.2.4.3  SIZE 10  A185,28/10/2022,0000482500,138.00,Revenue,KEY ENGINEERING & HYGIENE SUPPLIES LTD,0
South Ribble Borough Council,http://statistics.data.gov.uk/id/local-authority/30UE,Central Support Services,Clothing and Uniforms,4410,GLOVES - SIZE 8 - PU PALM SAFETY GLOVE PORTWEST A622,28/10/2022,0000482500,108.00,Revenue,KEY ENGINEERING & HYGIENE SUPPLIES LTD,0
South Ribble Borough Council,http://statistics.data.gov.uk/id/local-authority/30UE,Central Support Services,Clothing and Uniforms,4410,GLOVES -  SIZE  9  -  PU PALM SAFETY GLOVE EN420 &EN388 4.5.4.3 A622,28/10/2022,0000482500,216.00,Revenue,KEY ENGINEERING & HYGIENE SUPPLIES LTD,0
South Ribble Borough Council,http://statistics.data.gov.uk/id/local-authority/30UE,Central Support Services,Clothing and Uniforms,4410,GLOVES -  SIZE  10 -  PU PALM SAFETY GLOVE EN420 &EN388 4.5.4.3 A622,28/10/2022,0000482500,216.00,Revenue,KEY ENGINEERING & HYGIENE SUPPLIES LTD,0
South Ribble Borough Council,http://statistics.data.gov.uk/id/local-authority/30UE,Homelessness,Contributions to Other Bodies,4730,SRBC Drop in - 6 months 01/07/2022 - 31/12/2022,21/10/2022,0000482392,"15,000.00",Revenue,KEY UNLOCKING FUTURES LTD,0
South Ribble Borough Council,http://statistics.data.gov.uk/id/local-authority/30UE,Community Development,Materials General,4040,School Rental for Summer HAF Provision ,21/10/2022,0000482472,800.00,Revenue,Kingsfold Primary School,0
South Ribble Borough Council,http://statistics.data.gov.uk/id/local-authority/30UE,Central Support Services,Consultancy Fees,4541,Two interns per NAME REDACTED,07/10/2022,0000481676,"2,400.00",Revenue,Lancaster University,0
South Ribble Borough Council,http://statistics.data.gov.uk/id/local-authority/30UE,Planning Policy,Contributions to Other Bodies,4730,LCC - CIL 44 Bellway Homes Ltd,21/10/2022,0000482148,"737,320.04",Revenue,LANCS COUNTY COUNCIL,0
South Ribble Borough Council,http://statistics.data.gov.uk/id/local-authority/30UE,Planning Policy,Contributions to Other Bodies,4730,LCC - CIL 47 Redrow Homes Ltd,21/10/2022,0000482148,"357,267.49",Revenue,LANCS COUNTY COUNCIL,0
South Ribble Borough Council,http://statistics.data.gov.uk/id/local-authority/30UE,Planning Policy,Contributions to Other Bodies,4730,LCC - CIL 54 BDW Trading Limited,21/10/2022,0000482148,"740,358.64",Revenue,LANCS COUNTY COUNCIL,0
South Ribble Borough Council,http://statistics.data.gov.uk/id/local-authority/30UE,Planning Policy,Contributions to Other Bodies,4730,LCC - CIL income 2021/22,21/10/2022,0000482148,"3,264,556.38",Revenue,LANCS COUNTY COUNCIL,0
South Ribble Borough Council,http://statistics.data.gov.uk/id/local-authority/30UE,Planning Policy,Contributions to Other Bodies,4730,SRBC - City Deal - New Homes Bonus - 2021-22,21/10/2022,0000482148,"363,018.00",Revenue,LANCS COUNTY COUNCIL,0
South Ribble Borough Council,http://statistics.data.gov.uk/id/local-authority/30UE,Central Support Services,Materials General,4040,"6x injector seals, 1x header tank, 1x thermostat, 1x exhaust down pipe seal, oil return seal, PF18 JOV, JFC18737",14/10/2022,0000481890,374.27,Revenue,LANCS DAF,0
South Ribble Borough Council,http://statistics.data.gov.uk/id/local-authority/30UE,Central Support Services,Materials General,4040,"1x Disc Set, 1x Pad Set, 1x Hub Nut, YA19 NJZ, JFC18974",14/10/2022,0000482065,329.85,Revenue,LANCS DAF,0
South Ribble Borough Council,http://statistics.data.gov.uk/id/local-authority/30UE,Central Support Services,Materials General,4040,1 adblue dosing module RV14 DTZ JFC19110,21/10/2022,0000482390,537.42,Revenue,LANCS DAF,0
South Ribble Borough Council,http://statistics.data.gov.uk/id/local-authority/30UE,Open Spaces,GM Refurbishment,4657,"To reconstruct/repair existing fence around the open space at Bellis Way, Walton Park, PR5 4NS. ",21/10/2022,0000481679,"2,570.00",Revenue,Leyland Lane Wrought Iron Gates & Railings,0
South Ribble Borough Council,http://statistics.data.gov.uk/id/local-authority/30UE,Economic Development,Public Relations Strategy,4848,Video work for Discover South Ribble,07/10/2022,0000482149,250.00,Revenue,Luke Blazejewski,0
South Ribble Borough Council,http://statistics.data.gov.uk/id/local-authority/30UE,Culture & Heritage,Advertising,4841,Worden Hall videography,07/10/2022,0000482150,850.00,Revenue,Luke Blazejewski,0
South Ribble Borough Council,http://statistics.data.gov.uk/id/local-authority/30UE,Economic Development,Public Relations Strategy,4848,Discover South Ribble videography - phase 1,07/10/2022,0000482151,"1,450.00",Revenue,Luke Blazejewski,0
South Ribble Borough Council,http://statistics.data.gov.uk/id/local-authority/30UE,Economic Development,Professional Fees,4510,Chidren`s activities for Taste of Leyland,21/10/2022,0000482387,465.00,Revenue,Magical Story Jars,0
South Ribble Borough Council,http://statistics.data.gov.uk/id/local-authority/30UE,Capital,Capital Grant,C570,DFG WORKS FOR LEVEL ACCESS BATHROOM AT ADDRESS REDACTED,07/10/2022,0000482125,"1,978.03",Revenue,MAHONEY CONTRACTORS LTD,0
South Ribble Borough Council,http://statistics.data.gov.uk/id/local-authority/30UE,Capital,Capital Grant,C570,DFG WORKS FOR LEVEL ACCESS BATHROOM AT ADDRESS REDACTED,07/10/2022,0000482126,"4,918.80",Revenue,MAHONEY CONTRACTORS LTD,0
South Ribble Borough Council,http://statistics.data.gov.uk/id/local-authority/30UE,Capital,Capital Grant,C570,DFG WORKS FOR DOOR WIDENINGS AND ADDITIONAL WORKS TO BATHROOM TO ALLOW FOR TOILET TO BE INSTALLED AT ADDRESS REDACTED,07/10/2022,0000482127,"3,708.30",Revenue,MAHONEY CONTRACTORS LTD,0
South Ribble Borough Council,http://statistics.data.gov.uk/id/local-authority/30UE,Capital,Capital Grant,C570,DFG WORKS FOR LEVEL ACCESS BATHROOM AT ADDRESS REDACTED,14/10/2022,0000482223,"3,092.98",Revenue,MAHONEY CONTRACTORS LTD,0
South Ribble Borough Council,http://statistics.data.gov.uk/id/local-authority/30UE,Capital,Capital Grant,C570,DFG WORKS FOR AGREED BATHROOM WORKS AT ADDRESS REDACTED,28/10/2022,0000482636,"1,252.69",Revenue,MAHONEY CONTRACTORS LTD,0
South Ribble Borough Council,http://statistics.data.gov.uk/id/local-authority/30UE,Capital,Capital Grant,C570,DFG WORKS FOR BATHROOM GARAGE ADAPTATION AT ADDRESS REDACTED,28/10/2022,0000482637,"15,150.35",Revenue,MAHONEY CONTRACTORS LTD,0
South Ribble Borough Council,http://statistics.data.gov.uk/id/local-authority/30UE,Capital,Cap Contract Payment,C230,FRA for Bamber bridge 3G sports Hub as per NAME REDACTED,14/10/2022,0000481949,475.00,Revenue,Manchester Fire Compliance Ltd,0
South Ribble Borough Council,http://statistics.data.gov.uk/id/local-authority/30UE,Community Safety Services,Consultancy Fees,4541,Panel chair and consultancy work for Dunne DHR,07/10/2022,0000481982,"8,075.00",Revenue,Manus Review and Consulting Limited,0
South Ribble Borough Council,http://statistics.data.gov.uk/id/local-authority/30UE,Culture & Heritage,Operational Equip & Tools,4010,64 L Clear Really Useful Box Pack of 2 20cm Long Standard Comfort Grip Scissors,14/10/2022,0000481912,456.39,Revenue,Manutan UK Ltd,0
South Ribble Borough Council,http://statistics.data.gov.uk/id/local-authority/30UE,Capital,Capital Grant,C570,DFG WORK FOR ADAPTATION FOR DOOR OPENING SYSTEM AT ADDRESS REDACTED,07/10/2022,0000482128,969.60,Revenue,Martin Collins Joinery and Glazing Limited,0
South Ribble Borough Council,http://statistics.data.gov.uk/id/local-authority/30UE,Central Support Services,Short Course,1402,A Guide to Drafting Clauses & Amendments training 31/01/2023 - NAME REDACTED,28/10/2022,0000482538,270.00,Revenue,MBL SEMINARS,0
South Ribble Borough Council,http://statistics.data.gov.uk/id/local-authority/30UE,Central Support Services,Short Course,1402,A Guide to Drafting Leases & Amendments - 31/01/2023 - NAME REDACTED,28/10/2022,0000482540,270.00,Revenue,MBL SEMINARS,0
South Ribble Borough Council,http://statistics.data.gov.uk/id/local-authority/30UE,Surplus or Deficit on Trading,Reactive Repair & Maintenance,2020,Heaton Street - rebuild wall in car park following accidental damage caused by a vehicle. Requested by NAME REDACTED,14/10/2022,0000482067,"1,500.00",Revenue,Mick Bamber,0
South Ribble Borough Council,http://statistics.data.gov.uk/id/local-authority/30UE,Central Support Services,External Contractors Charges,4570,Recover vehicle from ditch at Ulnes Walton VA19KOX JFC18813,07/10/2022,0000481438,366.00,Revenue,MILLERS OF LONGTON LTD,0
South Ribble Borough Council,http://statistics.data.gov.uk/id/local-authority/30UE,Central Support Services,Short Course,1402,Aerial rescue training for NAME REDACTED 25/10/22 - 27/10/22,28/10/2022,0000482533,450.00,Revenue,Millhouse Training Ltd,0
South Ribble Borough Council,http://statistics.data.gov.uk/id/local-authority/30UE,Central Support Services,Short Course,1402,Ride on and Pedestrian Mower training on 05/10/2022 for four members of staff,28/10/2022,0000482536,906.00,Revenue,Millhouse Training Ltd,0
South Ribble Borough Council,http://statistics.data.gov.uk/id/local-authority/30UE,Central Support Services,Legal,4821,PROFESSIONAL SERVICES IN RESPECT OF THE PICKERING FARM INQUIRY,21/10/2022,0000482412,"47,725.00",Revenue,MR IAN PONTER,0
South Ribble Borough Council,http://statistics.data.gov.uk/id/local-authority/30UE,Regulatory Services,Legal,4821,"Legal fess - Penwortham Residential Park, Preston",14/10/2022,0000481889,450.00,Revenue,Mr Leo Charalambides,0
South Ribble Borough Council,http://statistics.data.gov.uk/id/local-authority/30UE,Central Support Services,Computer Equipment,4241,Apple 20W USB-C Power Adapter,21/10/2022,0000481459,"4,372.50",Revenue,MYPREMIER LTD,0
South Ribble Borough Council,http://statistics.data.gov.uk/id/local-authority/30UE,Development Control,Advertising,4841,Publication of planning publicity press notices in the LEP - April 2022 to March 2023,21/10/2022,0000481805,972.00,Revenue,National World Publishing Limited,0
South Ribble Borough Council,http://statistics.data.gov.uk/id/local-authority/30UE,Development Control,Advertising,4841,Publication of planning publicity press notices in the LEP - April 2022 to March 2023,21/10/2022,0000481911,972.00,Revenue,National World Publishing Limited,0
South Ribble Borough Council,http://statistics.data.gov.uk/id/local-authority/30UE,Development Control,Advertising,4841,Publication of planning publicity press notices in the LEP - April 2022 to March 2023,21/10/2022,0000482068,891.00,Revenue,National World Publishing Limited,0
South Ribble Borough Council,http://statistics.data.gov.uk/id/local-authority/30UE,Democratic Represent and  Mgnt,Miscellaneous Expenses,4851,To supply one Windrush flag,28/10/2022,0000469221,285.00,Revenue,Nigel S Guy (Windrush Generation UK),0
South Ribble Borough Council,http://statistics.data.gov.uk/id/local-authority/30UE,Democratic Represent and  Mgnt,Cost of Drinks,4311,Fiesta Compostable Coffee Cups - Single Wall 236ml/8oz,07/10/2022,0000481970,274.95,Revenue,NISBETS,0
South Ribble Borough Council,http://statistics.data.gov.uk/id/local-authority/30UE,Central Support Services,Materials General,4040,CHANNEL BRUSH - 2.8 mm POLY & 3.3mm WIRE 5 row 700/1000mm - MIDI SWEEPER-78399/2,28/10/2022,0000482376,790.15,Revenue,NORTHERN MUNICIPAL SPARES LTD,0
South Ribble Borough Council,http://statistics.data.gov.uk/id/local-authority/30UE,Central Support Services,Materials General,4040,4 ROW CHANNEL BRUSH - C/W 4 NUTS/BOLTS,28/10/2022,0000482376,338.90,Revenue,NORTHERN MUNICIPAL SPARES LTD,0
South Ribble Borough Council,http://statistics.data.gov.uk/id/local-authority/30UE,Central Support Services,Materials General,4040,carriage,28/10/2022,0000482376,58.32,Revenue,NORTHERN MUNICIPAL SPARES LTD,0
South Ribble Borough Council,http://statistics.data.gov.uk/id/local-authority/30UE,Economic Development,Professional Fees,4510,Portable toilets for Taste of Leyland event,14/10/2022,0000482188,880.00,Revenue,Northwest Portable Toilet Company Ltd,0
South Ribble Borough Council,http://statistics.data.gov.uk/id/local-authority/30UE,Parking Services,Parking Attendants,4514,Variable Fee Car Park Enforcement October,28/10/2022,0000482537,"1,701.81",Revenue,NSL LTD,0
South Ribble Borough Council,http://statistics.data.gov.uk/id/local-authority/30UE,Parking Services,Cash Collection Charges Car Parks,4855,Variable Fee Car Park Enforcement October,28/10/2022,0000482537,749.58,Revenue,NSL LTD,0
South Ribble Borough Council,http://statistics.data.gov.uk/id/local-authority/30UE,Community Development,Miscellaneous Expenses,4851,Portaloos for Vernon Carus Event 15 May,28/10/2022,0000480131,800.00,Revenue,NW Portables Ltd,0
South Ribble Borough Council,http://statistics.data.gov.uk/id/local-authority/30UE,Recreation & Sport,Dev ftarget Sports-Coaching,4894,Supply of 45 photo frames ,28/10/2022,0000482501,272.70,Revenue,O`pen Office Solutions Ltd,0
South Ribble Borough Council,http://statistics.data.gov.uk/id/local-authority/30UE,Parking Services,Cash Collection Charges Car Parks,4855,RingGo Fee Transactions - October 2022,21/10/2022,0000482414,97.45,Revenue,Park Now Limited,0
South Ribble Borough Council,http://statistics.data.gov.uk/id/local-authority/30UE,Parking Services,Cash Collection Charges Car Parks,4855,"RingGo Text Summary, Reminder & Processing Fees - October 2022",21/10/2022,0000482414,188.32,Revenue,Park Now Limited,0
South Ribble Borough Council,http://statistics.data.gov.uk/id/local-authority/30UE,Central Support Services,Clothing and Uniforms,4410,DISPOSABLE GLOVES NITRILE (BOX- 100) LARGE-DG150-M,28/10/2022,0000482384,166.50,Revenue,Pattersons (Bristol) Ltd,0
South Ribble Borough Council,http://statistics.data.gov.uk/id/local-authority/30UE,Central Support Services,Materials General,4040,TOILET TISSUE JANGRO - 2 ply-AB102,28/10/2022,0000482384,107.10,Revenue,Pattersons (Bristol) Ltd,0
South Ribble Borough Council,http://statistics.data.gov.uk/id/local-authority/30UE,Culture & Heritage,Advertising,4841,Worden Hall photography - 21.09 full day and 30.09 3 hrs,14/10/2022,0000482227,550.00,Revenue,PAUL HEYES PHOTOGRAPHY LTD,0
South Ribble Borough Council,http://statistics.data.gov.uk/id/local-authority/30UE,Economic Development,Operational Equip & Tools,4010,"Taste of Leyland event inc demo kitchen set up, generators, sorting electrics on the day, stage and equipment",07/10/2022,0000482136,"1,850.00",Revenue,Paul K Sound & Vision,0
South Ribble Borough Council,http://statistics.data.gov.uk/id/local-authority/30UE,Culture & Heritage,Operational Equip & Tools,4010,4x Display Case 500mm (H) x 600mm (W) x 400mm (D),28/10/2022,0000482408,440.00,Revenue,Peron Plastics Ltd,0
South Ribble Borough Council,http://statistics.data.gov.uk/id/local-authority/30UE,Regulatory Services,Disclosure Barring,4522,GOV FEE,28/10/2022,0000482308,342.00,Revenue,Personnel Checks,0
South Ribble Borough Council,http://statistics.data.gov.uk/id/local-authority/30UE,Regulatory Services,Disclosure Barring,4522,ADMIN FEE,28/10/2022,0000482308,119.97,Revenue,Personnel Checks,0
South Ribble Borough Council,http://statistics.data.gov.uk/id/local-authority/30UE,Economic Development,Professional Fees,4510,Stage entertainment for A Taste of Leyland Event,07/10/2022,0000482071,500.00,Revenue,Philip Robert Ireland,0
South Ribble Borough Council,http://statistics.data.gov.uk/id/local-authority/30UE,Economic Development,Miscellaneous Expenses,4851,7 Music in the Park tickets cost,07/10/2022,0000482072,264.60,Revenue,Philip Robert Ireland,0
South Ribble Borough Council,http://statistics.data.gov.uk/id/local-authority/30UE,Central Support Services,Group life Insurance,1819,FINAL PAYMENT FOR RENEWAL OF LIFE INSURANCE SCHEME 2022,07/10/2022,0000482129,840.67,Revenue,PHOENIX LIFE LTD,0
South Ribble Borough Council,http://statistics.data.gov.uk/id/local-authority/30UE,Central Support Services,Miscellaneous Expenses,4851,5 x Microsoft 365 Collaboration Review and Recommendations Workshop,28/10/2022,0000482152,"4,750.00",Revenue,PHOENIX SOFTWARE LTD,0
South Ribble Borough Council,http://statistics.data.gov.uk/id/local-authority/30UE,Tourism,Planned Annual Repair & Maintenance,2021,Annual Contract for Worden Hall until 31st March 2023 ,21/10/2022,0000482240,366.78,Revenue,PHS GROUP PLC,0
South Ribble Borough Council,http://statistics.data.gov.uk/id/local-authority/30UE,Tourism,Planned Annual Repair & Maintenance,2021,Annual Contract for Worden Hall until 31st March 2023 ,21/10/2022,0000482242,492.88,Revenue,PHS GROUP PLC,0
South Ribble Borough Council,http://statistics.data.gov.uk/id/local-authority/30UE,Tourism,Planned Annual Repair & Maintenance,2021,Annual Contract for Worden Hall until 31st March 2023 ,21/10/2022,0000482243,299.69,Revenue,PHS GROUP PLC,0
South Ribble Borough Council,http://statistics.data.gov.uk/id/local-authority/30UE,Central Support Services,Materials General,4040,4000L Ad Blue @ 0.6995ppl,14/10/2022,0000481974,"2,798.00",Revenue,PILKINGTON OILS,0
South Ribble Borough Council,http://statistics.data.gov.uk/id/local-authority/30UE,Central Support Services,Materials General,4040,Spec Repair PJ62 UCG JFC 19022,14/10/2022,0000482021,289.87,Revenue,Pirtek,0
South Ribble Borough Council,http://statistics.data.gov.uk/id/local-authority/30UE,Central Support Services,Agency Staff,1121,Planning Enforcement consultancy services,14/10/2022,0000482166,"1,710.00",Revenue,Planning Control & PACE Solutions,0
South Ribble Borough Council,http://statistics.data.gov.uk/id/local-authority/30UE,Central Support Services,Agency Staff,1121,Planning Enforcement consultancy services,28/10/2022,0000482295,"1,311.00",Revenue,Planning Control & PACE Solutions,0
South Ribble Borough Council,http://statistics.data.gov.uk/id/local-authority/30UE,Central Support Services,Agency Staff,1121,Planning Enforcement consultancy services,28/10/2022,0000482383,"1,444.00",Revenue,Planning Control & PACE Solutions,0
South Ribble Borough Council,http://statistics.data.gov.uk/id/local-authority/30UE,Development Control,Refunded Income,485R,refund plan app,21/10/2022,0000482046,"2,310.00",Revenue,Planning Portal,0
South Ribble Borough Council,http://statistics.data.gov.uk/id/local-authority/30UE,Capital,Cap Contract Payment,C230,Worden Hall Signage,28/10/2022,0000482073,"8,391.18",Revenue,Poppy Signs Ltd,0
South Ribble Borough Council,http://statistics.data.gov.uk/id/local-authority/30UE,Culture & Heritage,Advertising,4841,"Worden Hall Full system including print, frame, seam-free three-sided fabric graphic attached to f",14/10/2022,0000482130,664.94,Revenue,Poppy Signs Ltd,0
South Ribble Borough Council,http://statistics.data.gov.uk/id/local-authority/30UE,Elections,Electoral Administration Act,4970,"10,000 ITR outer envelopes  5,000 reply envelopes ",28/10/2022,0000482495,"1,010.95",Revenue,PRINT IMAGE NETWORK LTD,0
South Ribble Borough Council,http://statistics.data.gov.uk/id/local-authority/30UE,Homelessness,Void Loss,5313,Q1 22/23 Void loss Interim accommodation,21/10/2022,0000482379,"1,009.79",Revenue,PROGRESS HOUSING GRP ref:DNSOU001,0
South Ribble Borough Council,http://statistics.data.gov.uk/id/local-authority/30UE,Homelessness,Contributions to Other Bodies,4730,Agreed recharge payment IB,21/10/2022,0000482427,550.00,Revenue,PROGRESS HOUSING GRP ref:DNSOU001,0
South Ribble Borough Council,http://statistics.data.gov.uk/id/local-authority/30UE,Short Term Creditors,Amount Paid,0030,June 22 underpaid due to payroll crediting 973.20 incorrectly,14/10/2022,0000482289,973.20,Revenue,Prudential,0
South Ribble Borough Council,http://statistics.data.gov.uk/id/local-authority/30UE,Homelessness,Temporary Accommodation,5311,B&B accommodation.,21/10/2022,0000482361,"1,651.00",Revenue,Purpleroomz,0
South Ribble Borough Council,http://statistics.data.gov.uk/id/local-authority/30UE,Homelessness,Temporary Accommodation,5311,B&B accommodation.,21/10/2022,0000482361,"1,651.00",Revenue,Purpleroomz,0
South Ribble Borough Council,http://statistics.data.gov.uk/id/local-authority/30UE,Homelessness,Temporary Accommodation,5311,B&B accommodation.,21/10/2022,0000482361,"1,651.00",Revenue,Purpleroomz,0
South Ribble Borough Council,http://statistics.data.gov.uk/id/local-authority/30UE,Homelessness,Temporary Accommodation,5311,B&B accommodation.,21/10/2022,0000482361,"1,796.25",Revenue,Purpleroomz,0
South Ribble Borough Council,http://statistics.data.gov.uk/id/local-authority/30UE,Homelessness,Temporary Accommodation,5311,B&B accommodation.,21/10/2022,0000482361,"2,116.50",Revenue,Purpleroomz,0
South Ribble Borough Council,http://statistics.data.gov.uk/id/local-authority/30UE,Homelessness,Temporary Accommodation,5311,B&B accommodation.,21/10/2022,0000482361,"2,116.50",Revenue,Purpleroomz,0
South Ribble Borough Council,http://statistics.data.gov.uk/id/local-authority/30UE,Homelessness,Temporary Accommodation,5311,B&B accommodation.,21/10/2022,0000482361,"1,796.25",Revenue,Purpleroomz,0
South Ribble Borough Council,http://statistics.data.gov.uk/id/local-authority/30UE,Homelessness,Temporary Accommodation,5311,B&B accommodation.,21/10/2022,0000482361,"1,796.25",Revenue,Purpleroomz,0
South Ribble Borough Council,http://statistics.data.gov.uk/id/local-authority/30UE,Homelessness,Temporary Accommodation,5311,B&B accommodation.,21/10/2022,0000482361,"1,796.25",Revenue,Purpleroomz,0
South Ribble Borough Council,http://statistics.data.gov.uk/id/local-authority/30UE,Homelessness,Contributions to Other Bodies,4730,B&B accommodation.,21/10/2022,0000482361,58.75,Revenue,Purpleroomz,0
South Ribble Borough Council,http://statistics.data.gov.uk/id/local-authority/30UE,Homelessness,Contributions to Other Bodies,4730,B&B accommodation.,21/10/2022,0000482361,53.75,Revenue,Purpleroomz,0
South Ribble Borough Council,http://statistics.data.gov.uk/id/local-authority/30UE,Homelessness,Contributions to Other Bodies,4730,B&B accommodation.,21/10/2022,0000482361,58.00,Revenue,Purpleroomz,0
South Ribble Borough Council,http://statistics.data.gov.uk/id/local-authority/30UE,Homelessness,Temporary Accommodation,5311,B&B accommodation.,21/10/2022,0000482361,"1,427.50",Revenue,Purpleroomz,0
South Ribble Borough Council,http://statistics.data.gov.uk/id/local-authority/30UE,Homelessness,Temporary Accommodation,5311,B&B accommodation.,21/10/2022,0000482361,769.50,Revenue,Purpleroomz,0
South Ribble Borough Council,http://statistics.data.gov.uk/id/local-authority/30UE,Homelessness,Temporary Accommodation,5311,B&B accommodation.,21/10/2022,0000482361,"1,495.00",Revenue,Purpleroomz,0
South Ribble Borough Council,http://statistics.data.gov.uk/id/local-authority/30UE,Homelessness,Contributions to Other Bodies,4730,B&B accommodation.,21/10/2022,0000482361,58.75,Revenue,Purpleroomz,0
South Ribble Borough Council,http://statistics.data.gov.uk/id/local-authority/30UE,Homelessness,Contributions to Other Bodies,4730,B&B accommodation.,21/10/2022,0000482361,223.50,Revenue,Purpleroomz,0
South Ribble Borough Council,http://statistics.data.gov.uk/id/local-authority/30UE,Homelessness,Contributions to Other Bodies,4730,B&B accommodation.,21/10/2022,0000482361,53.75,Revenue,Purpleroomz,0
South Ribble Borough Council,http://statistics.data.gov.uk/id/local-authority/30UE,Homelessness,Contributions to Other Bodies,4730,B&B accommodation.,21/10/2022,0000482361,53.75,Revenue,Purpleroomz,0
South Ribble Borough Council,http://statistics.data.gov.uk/id/local-authority/30UE,Homelessness,Temporary Accommodation,5311,B&B accommodation.,21/10/2022,0000482361,493.00,Revenue,Purpleroomz,0
South Ribble Borough Council,http://statistics.data.gov.uk/id/local-authority/30UE,Surplus or Deficit on Trading,Reactive Repair & Maintenance,2020,"Jetting central drain within craft unit courtyard (Brewhouse, Worden park) ",14/10/2022,0000482090,"1,200.00",Revenue,RED ROSE BUILDING MAINTENANCE,0
South Ribble Borough Council,http://statistics.data.gov.uk/id/local-authority/30UE,Surplus or Deficit on Trading,Reactive Repair & Maintenance,2020,Materials,14/10/2022,0000482090,300.00,Revenue,RED ROSE BUILDING MAINTENANCE,0
South Ribble Borough Council,http://statistics.data.gov.uk/id/local-authority/30UE,Surplus or Deficit on Trading,Reactive Repair & Maintenance,2020,For putting up anti climb paint on Pearson House Station Road  Bamber Bridge  as per NAME REDACTED,21/10/2022,0000482358,150.00,Revenue,RED ROSE BUILDING MAINTENANCE,0
South Ribble Borough Council,http://statistics.data.gov.uk/id/local-authority/30UE,Surplus or Deficit on Trading,Reactive Repair & Maintenance,2020,Labour,21/10/2022,0000482358,100.00,Revenue,RED ROSE BUILDING MAINTENANCE,0
South Ribble Borough Council,http://statistics.data.gov.uk/id/local-authority/30UE,Surplus or Deficit on Trading,Reactive Repair & Maintenance,2020,"To visit ADDRESS REDACTED, insert and fix capping `bung` to internal waste gully(s). Heavy rain causes ADDRESS REDACTED  to flood ",28/10/2022,0000482621,220.00,Revenue,RED ROSE BUILDING MAINTENANCE,0
South Ribble Borough Council,http://statistics.data.gov.uk/id/local-authority/30UE,Surplus or Deficit on Trading,Reactive Repair & Maintenance,2020,MATERIALS,28/10/2022,0000482621,55.00,Revenue,RED ROSE BUILDING MAINTENANCE,0
South Ribble Borough Council,http://statistics.data.gov.uk/id/local-authority/30UE,Homelessness,Temporary Accommodation,5311,OSM Oct - Dec 2022,14/10/2022,0000481973,"5,624.90",Revenue,REDDY & CO,0
South Ribble Borough Council,http://statistics.data.gov.uk/id/local-authority/30UE,Central Support Services,Materials General,4040,replaces inv SI0100893 also credit rec`d,21/10/2022,0000482490,556.87,Revenue,Refuse Vehicle Parts,0
South Ribble Borough Council,http://statistics.data.gov.uk/id/local-authority/30UE,Central Support Services,Materials General,4040,1 Bin Clamp Plate YE19 JPW JFC18925,28/10/2022,0000482542,556.87,Revenue,Refuse Vehicle Parts,0
South Ribble Borough Council,http://statistics.data.gov.uk/id/local-authority/30UE,Economic Development,Professional Fees,4510,Road Closure on Hough Lane for A Taste of Leyland,14/10/2022,0000482248,878.00,Revenue,Road Safety Services LTD,0
South Ribble Borough Council,http://statistics.data.gov.uk/id/local-authority/30UE,Open Spaces,GM Refurbishment,4657,Sky Carver spares as per quotation ref. 58493-001. ,28/10/2022,0000482355,912.27,Revenue,RUSSELL LEISURE LTD,0
South Ribble Borough Council,http://statistics.data.gov.uk/id/local-authority/30UE,Central Support Services,LCC Internal Audit,5413,Provision of 8 days Internal audit services,07/10/2022,0000482044,"3,800.00",Revenue,Salford Internal Audit Services,0
South Ribble Borough Council,http://statistics.data.gov.uk/id/local-authority/30UE,Short Term Debtors,Amount Paid,0030,To supply continued Commercial Estates support for the Test Track mixed use development as per NAME REDACTED,14/10/2022,0000482235,587.50,Revenue,Sanderson Weatherall LLP,0
South Ribble Borough Council,http://statistics.data.gov.uk/id/local-authority/30UE,Capital,Cap Contract Payment,C230,RIBA 4 - Technical Design (2nd stage tender negotiations and contract award) - Jubilee Gardens Extra Care Project,07/10/2022,0000481706,"3,921.00",Revenue,SDA Consulting LLP,0
South Ribble Borough Council,http://statistics.data.gov.uk/id/local-authority/30UE,Capital,Cap Contract Payment,C230,RIBA 4 - Technical Design stage (2nd stage tender negotiations and contract award) � Service Manager Role for PCSA,07/10/2022,0000481707,"1,390.00",Revenue,SDA Consulting LLP,0
South Ribble Borough Council,http://statistics.data.gov.uk/id/local-authority/30UE,Economic Development,Partnership,485I,"Social media campaign to promote the event to residents in Chorley, South Ribble and Preston to maximise attendance at the Raising Aspirations Event.",21/10/2022,0000481708,900.00,Revenue,SHOUT Network Ltd,0
South Ribble Borough Council,http://statistics.data.gov.uk/id/local-authority/30UE,Central Support Services,Other Fees,4520,Shredding of Confidential Waste 2021/22,28/10/2022,0000482527,644.67,Revenue,SHRED-IT LTD,0
South Ribble Borough Council,http://statistics.data.gov.uk/id/local-authority/30UE,Central Support Services,Office Requisites,4136,shred-it,28/10/2022,0000482528,"1,317.75",Revenue,SHRED-IT LTD,0
South Ribble Borough Council,http://statistics.data.gov.uk/id/local-authority/30UE,Community Development,Core Fund,4861,A grant application referred from Boost Fund Plus to the BBLHWLD Community Hub to support regular community cafes.,28/10/2022,0000482512,"1,000.00",Revenue,Simon Harkin,0
South Ribble Borough Council,http://statistics.data.gov.uk/id/local-authority/30UE,Capital,Cap Contract Payment,C230,Proposal for direct award in re to Leyland Town Deal - Bat Surveys for Leyland Market and Balfour Court further to recommendations ,07/10/2022,0000482137,754.00,Revenue,Simply Ecology Limited,0
South Ribble Borough Council,http://statistics.data.gov.uk/id/local-authority/30UE,Capital,Cap Contract Payment,C230,This is for the completion of the works to Vernon Carus Cricket Club as agreed.at Vernon Carus Site as per NAME REDACTED request,21/10/2022,0000482488,"25,000.00",Revenue,SJJ Contracts Limited,0
South Ribble Borough Council,http://statistics.data.gov.uk/id/local-authority/30UE,Recreation & Sport,Electricity,2303,Pay over credits from NPower,14/10/2022,0000482331,"35,642.15",Revenue,South Ribble Leisure Ltd,0
South Ribble Borough Council,http://statistics.data.gov.uk/id/local-authority/30UE,Recreation & Sport,Electricity,2303,Pay over credits from NPower,14/10/2022,0000482331,"23,986.28",Revenue,South Ribble Leisure Ltd,0
South Ribble Borough Council,http://statistics.data.gov.uk/id/local-authority/30UE,Central Support Services,External Contractors Charges,4570,Spec repair- call out to Adblue and emission faults,14/10/2022,0000482086,"2,655.00",Revenue,Southfield RCV Services Limited,0
South Ribble Borough Council,http://statistics.data.gov.uk/id/local-authority/30UE,Central Support Services,Materials General,4040,credit rec`d and email from NAME REDACTED to put through,21/10/2022,0000480828,354.83,Revenue,SPALDINGS,0
South Ribble Borough Council,http://statistics.data.gov.uk/id/local-authority/30UE,Central Support Services,Departmental Course Fees,1420,DCPC - Onsite Module Course Fee for 21.9.22,14/10/2022,0000482131,595.00,Revenue,SPECIALIST TRAINING & CONSULTANCY SERVICES LTD,0
South Ribble Borough Council,http://statistics.data.gov.uk/id/local-authority/30UE,Central Support Services,Departmental Course Fees,1420,Registration Fee,14/10/2022,0000482131,105.00,Revenue,SPECIALIST TRAINING & CONSULTANCY SERVICES LTD,0
South Ribble Borough Council,http://statistics.data.gov.uk/id/local-authority/30UE,Recreation & Sport,Electricity,2303,2/9 to 1/10/22,28/10/2022,0000482571,367.50,Revenue,SSE 691852372 Moss Side CC Dunkirk Hall,0
South Ribble Borough Council,http://statistics.data.gov.uk/id/local-authority/30UE,Service Management & Support,Diesel Fuel,3132,"16000 Ltrs Diesel @ 137.35ppl into the tank at Unit 81 Bison Place, Moss Side- key for cabinet is available from the main office",07/10/2022,0000482084,"22,021.33",Revenue,Standard Fuel Oils LtdMain,0
South Ribble Borough Council,http://statistics.data.gov.uk/id/local-authority/30UE,Service Management & Support,Diesel Fuel,3132,"2,000 Litres of Gas Oil ",07/10/2022,0000482085,"1,902.41",Revenue,Standard Fuel Oils LtdMain,0
South Ribble Borough Council,http://statistics.data.gov.uk/id/local-authority/30UE,Capital,Capital Grant,C570,DFG WORK TO SUPPLY AND INSTALL A STAIRLIFT  AT  ADDRESS REDACTED,07/10/2022,0000482132,"8,006.00",Revenue,Stannah Lift Services Ltd,0
South Ribble Borough Council,http://statistics.data.gov.uk/id/local-authority/30UE,Capital,Capital Grant,C570,DFG WORK TO SUPPLY AND INSTALL A STAIRLIFT  AT  ADDRESS REDACTED,28/10/2022,0000482635,"6,331.00",Revenue,Stannah Lift Services Ltd,0
South Ribble Borough Council,http://statistics.data.gov.uk/id/local-authority/30UE,Capital,Cap Contract Payment,C230,Removal of remaining tree stumps (stump grind) and cut low lying branches along bridleway,28/10/2022,0000482535,600.00,Revenue,Stephen Pye Tree Services,0
South Ribble Borough Council,http://statistics.data.gov.uk/id/local-authority/30UE,Central Support Services,Departmental Course Fees,1420,Stroma Domestic Assessor training - 5 people attending the course - per NAME REDACTED,07/10/2022,0000481936,"2,640.00",Revenue,STOMA Certification,0
South Ribble Borough Council,http://statistics.data.gov.uk/id/local-authority/30UE,Central Support Services,Materials General,4040,1xClutch 1x Bolt 2x Blades PMR 33 A2 JFC 19019,28/10/2022,0000482233,421.75,Revenue,Stuart Taylor,0
South Ribble Borough Council,http://statistics.data.gov.uk/id/local-authority/30UE,Democratic Represent and  Mgnt,External Catering Charges,4575,Full Council.55x east meets west lunch boxes with muffin,07/10/2022,0000482081,384.45,Revenue,Style Catering,0
South Ribble Borough Council,http://statistics.data.gov.uk/id/local-authority/30UE,Economic Development,Operational Equip & Tools,4010,Waste provision at the Taste of Leyland Event,28/10/2022,0000482296,345.00,Revenue,SUEZ  RECYCLING AND REC UK LTD 80005291,0
South Ribble Borough Council,http://statistics.data.gov.uk/id/local-authority/30UE,Central Support Services,Individual Subs Prof. Bodies,1741,8 Practising Certificates for Solicitors,14/10/2022,0000482301,"2,528.00",Revenue,THE LAW SOCIETY,0
South Ribble Borough Council,http://statistics.data.gov.uk/id/local-authority/30UE,Central Support Services,Network and Security,4247,Block of 100 RMACs,21/10/2022,0000481817,"5,000.00",Revenue,The Networking People (TNP) Ltd,0
South Ribble Borough Council,http://statistics.data.gov.uk/id/local-authority/30UE,Central Support Services,Network and Security,4247,"Resilient Internet Route 2: South Ribble Borough Council Civic Centre, PR25 1DH",21/10/2022,0000482181,"8,111.91",Revenue,The Networking People (TNP) Ltd,0
South Ribble Borough Council,http://statistics.data.gov.uk/id/local-authority/30UE,Central Support Services,Network and Security,4247,001 Excess construction charges for ONEA86793134,21/10/2022,0000482182,"2,043.48",Revenue,The Networking People (TNP) Ltd,0
South Ribble Borough Council,http://statistics.data.gov.uk/id/local-authority/30UE,Central Support Services,Network and Security,4247,Excess Construction Charges relating to ONEA70779481 ,21/10/2022,0000482187,"2,844.04",Revenue,The Networking People (TNP) Ltd,0
South Ribble Borough Council,http://statistics.data.gov.uk/id/local-authority/30UE,Central Support Services,Network and Security,4247,"Resilient Internet Route 2: South Ribble Borough Council Civic Centre, PR25 1DH",21/10/2022,0000482232,"9,717.68",Revenue,The Networking People (TNP) Ltd,0
South Ribble Borough Council,http://statistics.data.gov.uk/id/local-authority/30UE,Central Support Services,Network and Security,4247,"Resilient Internet Route 2: South Ribble Borough Council Civic Centre, PR25 1DH",21/10/2022,0000482244,"17,067.53",Revenue,The Networking People (TNP) Ltd,0
South Ribble Borough Council,http://statistics.data.gov.uk/id/local-authority/30UE,Central Support Services,External Contractors Charges,4570,Tyre Requirement 244,28/10/2022,0000482543,471.28,Revenue,Tomlinson Road Tyres,0
South Ribble Borough Council,http://statistics.data.gov.uk/id/local-authority/30UE,Tourism,Electricity,2303,1/9 to 31/9/22,14/10/2022,0000482290,"1,150.90",Revenue,Total Gas & power Ltd,0
South Ribble Borough Council,http://statistics.data.gov.uk/id/local-authority/30UE,Open Spaces,Electricity,2303,1/9 to 31/9/22,14/10/2022,0000482302,534.55,Revenue,Total Gas & power Ltd,0
South Ribble Borough Council,http://statistics.data.gov.uk/id/local-authority/30UE,Central Support Services,Gas,2304,31/8 to 30/9/22,14/10/2022,0000482303,761.22,Revenue,Total Gas & power Ltd,0
South Ribble Borough Council,http://statistics.data.gov.uk/id/local-authority/30UE,Central Support Services,Electricity,2303,1/9 to 30/9/22,21/10/2022,0000482449,"3,120.86",Revenue,Total Gas & power Ltd,0
South Ribble Borough Council,http://statistics.data.gov.uk/id/local-authority/30UE,Central Support Services,Electricity,2303,1/9 to 30/9/22,21/10/2022,0000482451,"2,450.17",Revenue,Total Gas & power Ltd,0
South Ribble Borough Council,http://statistics.data.gov.uk/id/local-authority/30UE,Open Spaces,Electricity,2303,30/7 to 30/9/22,28/10/2022,0000482555,304.91,Revenue,Total Gas & power Ltd,0
South Ribble Borough Council,http://statistics.data.gov.uk/id/local-authority/30UE,Open Spaces,Electricity,2303,4/8 to 30/9/22,28/10/2022,0000482557,447.79,Revenue,Total Gas & power Ltd,0
South Ribble Borough Council,http://statistics.data.gov.uk/id/local-authority/30UE,Recreation & Sport,Professional Fees,4510,Scoot Safe printing,07/10/2022,0000481902,423.00,Revenue,TOWNSEND PRINT SERVICES LTD,0
South Ribble Borough Council,http://statistics.data.gov.uk/id/local-authority/30UE,Recreation & Sport,Publicity & Promotion,4842,Supply of: Cover 250gsm silk. Pages 115gsm for all three.,21/10/2022,0000482344,"1,514.00",Revenue,TOWNSEND PRINT SERVICES LTD,0
South Ribble Borough Council,http://statistics.data.gov.uk/id/local-authority/30UE,Capital,Cap Expenditure Other,C750,2021-22 DOUBLE GLAZING SCHEME FUNDS AS PER TENDER SPECIFICATIONS ,28/10/2022,0000482417,"1,139.00",Revenue,TRADE WINDOWS & CONSERVATORIES,0
South Ribble Borough Council,http://statistics.data.gov.uk/id/local-authority/30UE,Capital,Cap Expenditure Other,C750,2021-22 DOUBLE GLAZING SCHEME FUNDS AS PER TENDER SPECIFICATIONS ,28/10/2022,0000482420,"1,629.17",Revenue,TRADE WINDOWS & CONSERVATORIES,0
South Ribble Borough Council,http://statistics.data.gov.uk/id/local-authority/30UE,Capital,Cap Expenditure Other,C750,2021-22 DOUBLE GLAZING SCHEME FUNDS AS PER TENDER SPECIFICATIONS ,28/10/2022,0000482421,"2,554.00",Revenue,TRADE WINDOWS & CONSERVATORIES,0
South Ribble Borough Council,http://statistics.data.gov.uk/id/local-authority/30UE,Capital,Cap Expenditure Other,C750,2021-22 DOUBLE GLAZING SCHEME FUNDS AS PER TENDER SPECIFICATIONS ,28/10/2022,0000482422,"1,082.00",Revenue,TRADE WINDOWS & CONSERVATORIES,0
South Ribble Borough Council,http://statistics.data.gov.uk/id/local-authority/30UE,Capital,Cap Expenditure Other,C750,2021-22 DOUBLE GLAZING SCHEME FUNDS AS PER TENDER SPECIFICATIONS ,28/10/2022,0000482423,"1,345.83",Revenue,TRADE WINDOWS & CONSERVATORIES,0
South Ribble Borough Council,http://statistics.data.gov.uk/id/local-authority/30UE,Capital,Cap Expenditure Other,C750,2021-22 DOUBLE GLAZING SCHEME FUNDS AS PER TENDER SPECIFICATIONS ,28/10/2022,0000482466,"1,520.83",Revenue,TRADE WINDOWS & CONSERVATORIES,0
South Ribble Borough Council,http://statistics.data.gov.uk/id/local-authority/30UE,Capital,Cap Expenditure Other,C750,2021-22 DOUBLE GLAZING SCHEME FUNDS AS PER TENDER SPECIFICATIONS ,28/10/2022,0000482467,"1,854.00",Revenue,TRADE WINDOWS & CONSERVATORIES,0
South Ribble Borough Council,http://statistics.data.gov.uk/id/local-authority/30UE,Capital,Cap Expenditure Other,C750,2021-22 DOUBLE GLAZING SCHEME FUNDS AS PER TENDER SPECIFICATIONS ,28/10/2022,0000482468,"1,854.00",Revenue,TRADE WINDOWS & CONSERVATORIES,0
South Ribble Borough Council,http://statistics.data.gov.uk/id/local-authority/30UE,Capital,Cap Expenditure Other,C750,2021-22 DOUBLE GLAZING SCHEME FUNDS AS PER TENDER SPECIFICATIONS ,28/10/2022,0000482469,"1,567.83",Revenue,TRADE WINDOWS & CONSERVATORIES,0
South Ribble Borough Council,http://statistics.data.gov.uk/id/local-authority/30UE,Capital,Cap Expenditure Other,C750,2021-22 DOUBLE GLAZING SCHEME FUNDS AS PER TENDER SPECIFICATIONS ,28/10/2022,0000482470,697.50,Revenue,TRADE WINDOWS & CONSERVATORIES,0
South Ribble Borough Council,http://statistics.data.gov.uk/id/local-authority/30UE,Community Development,Core Fund,4861,"For design, manufacture, delivery and installation of  Deer Sculpture",07/10/2022,0000481893,"4,095.00",Revenue,Trash Metal Fabrications,0
South Ribble Borough Council,http://statistics.data.gov.uk/id/local-authority/30UE,Development Control,Consultancy Fees,4541,Consultancy services for Pickerings farm appeal,21/10/2022,0000482297,"17,437.50",Revenue,Trebbi Continuum Limited,0
South Ribble Borough Council,http://statistics.data.gov.uk/id/local-authority/30UE,Central Support Services,External Contractors Charges,4570,Truck Tyre Maintenance July 2022,07/10/2022,0000482156,577.18,Revenue,Tructyre Fleet Management Ltd,0
South Ribble Borough Council,http://statistics.data.gov.uk/id/local-authority/30UE,Central Support Services,External Contractors Charges,4570,Truck Tyre Maintenance July 2022,07/10/2022,0000482157,312.52,Revenue,Tructyre Fleet Management Ltd,0
South Ribble Borough Council,http://statistics.data.gov.uk/id/local-authority/30UE,Central Support Services,External Contractors Charges,4570,Truck Tyre Maintenance August 2022,07/10/2022,0000482163,792.51,Revenue,Tructyre Fleet Management Ltd,0
South Ribble Borough Council,http://statistics.data.gov.uk/id/local-authority/30UE,Community Development,Miscellaneous Expenses,4851,School Uniform Shop,28/10/2022,0000481861,500.00,Revenue,Trustees of the J Healey Settlement,0
South Ribble Borough Council,http://statistics.data.gov.uk/id/local-authority/30UE,Economic Development,Advertising,4841,"Initial website build including design, content creation, hosting/SSL/SEO etc. including all testing.",07/10/2022,0000482038,"1,950.00",Revenue,UK Media Events Ltd,0
South Ribble Borough Council,http://statistics.data.gov.uk/id/local-authority/30UE,Economic Development,Professional Fees,4510,x 2 Facepainters for A Taste of Leyland Event,07/10/2022,0000482169,600.00,Revenue,UK Media Events Ltd,0
South Ribble Borough Council,http://statistics.data.gov.uk/id/local-authority/30UE,Central Support Services,Materials General,4040,HAND WIPES ANTI-BACTERIAL- HEAVY DUTY BMDB-665877,21/10/2022,0000482341,297.60,Revenue,United Industrial Supplies Ltd,0
South Ribble Borough Council,http://statistics.data.gov.uk/id/local-authority/30UE,Regulatory Services,Analyst Fee,4542,Water Samples for 2022/23,21/10/2022,0000482338,489.87,Revenue,UNITED UTILITIES WATER PLC,0
South Ribble Borough Council,http://statistics.data.gov.uk/id/local-authority/30UE,Central Support Services,College Course,1403,TUITION FEES FOR NAME REDACTED TO ATTEND ` MSC IN REAL ESTATE AND PROPERTY MANAGEMENT - YEAR 2,21/10/2022,0000482330,"2,940.00",Revenue,University of Salford,0
South Ribble Borough Council,http://statistics.data.gov.uk/id/local-authority/30UE,Central Support Services,Reactive Repair & Maintenance,2020,"2022 / 2023 annual contract for quarterly servicing of 7No water coolers located at the Civic Centre, PR25 1DH",21/10/2022,0000482329,435.00,Revenue,VENDING ENTERPRISES,0
South Ribble Borough Council,http://statistics.data.gov.uk/id/local-authority/30UE,Democratic Represent and  Mgnt,Rental,4012,2022 / 2023 annual contract for the monthly rental of hot drinks machines at the civic centre including environmental charge.,21/10/2022,0000482329,42.48,Revenue,VENDING ENTERPRISES,0
South Ribble Borough Council,http://statistics.data.gov.uk/id/local-authority/30UE,Central Support Services,Agency Staff,1121,Consultant Planning Officer NAME REDACTED - 6 month contract to provide additional support to Development Management.,28/10/2022,0000481719,"1,693.13",Revenue,Vivid Resourcing,0
South Ribble Borough Council,http://statistics.data.gov.uk/id/local-authority/30UE,Central Support Services,Agency Staff,1121,Consultant Planning Officer NAME REDACTED - 6 month contract to provide additional support to Development Management.,28/10/2022,0000482077,"1,758.75",Revenue,Vivid Resourcing,0
South Ribble Borough Council,http://statistics.data.gov.uk/id/local-authority/30UE,Central Support Services,Agency Staff,1121,Consultant Planning Officer NAME REDACTED - 6 month contract to provide additional support to Development Management.,28/10/2022,0000482323,"2,008.13",Revenue,Vivid Resourcing,0
South Ribble Borough Council,http://statistics.data.gov.uk/id/local-authority/30UE,Open Spaces,Water Charges(Metered),2511,8/7 to 25/9/22,14/10/2022,0000482255,405.79,Revenue,WATER PLUS,0
South Ribble Borough Council,http://statistics.data.gov.uk/id/local-authority/30UE,Central Support Services,Water Charges(Metered),2511,25/4 to 4/8/22,21/10/2022,0000482461,171.82,Revenue,WATER PLUS,0
South Ribble Borough Council,http://statistics.data.gov.uk/id/local-authority/30UE,Central Support Services,Water Charges(Metered),2511,DCA FEE,21/10/2022,0000482461,170.00,Revenue,WATER PLUS,0
South Ribble Borough Council,http://statistics.data.gov.uk/id/local-authority/30UE,Central Support Services,Water Charges(Metered),2511,25/08/2022 - 24/09/2022,07/10/2022,0000482118,"3,688.35",Revenue,"WaterPlus 4083872980 Council Offices, West Paddock",0
South Ribble Borough Council,http://statistics.data.gov.uk/id/local-authority/30UE,Regulatory Services,Water Charges(Metered),2511,28/08/2022 - 27/09/2022,07/10/2022,0000482165,611.91,Revenue,WaterPlus 4084122061 Public Toilets William Street,0
South Ribble Borough Council,http://statistics.data.gov.uk/id/local-authority/30UE,Parking Services,Water Charges(Metered),2511,01/04/2022 - 31/03/2023,07/10/2022,0000482183,"3,704.51",Revenue,WaterPlus 4123085069 Ecroyd Street Car Park,0
South Ribble Borough Council,http://statistics.data.gov.uk/id/local-authority/30UE,Open Spaces,Water Charges(Metered),2511,11/11 to 11/2/22,14/10/2022,0000482103,"3,818.87",Revenue,WaterPlus 4191231371 Worden Park,0
South Ribble Borough Council,http://statistics.data.gov.uk/id/local-authority/30UE,Open Spaces,Water Charges(Metered),2511,9/8 to 9/9/22,14/10/2022,0000482104,"1,189.58",Revenue,WaterPlus 4191231371 Worden Park,0
South Ribble Borough Council,http://statistics.data.gov.uk/id/local-authority/30UE,Open Spaces,Water Charges(Metered),2511,25/4 to 9/8/22,14/10/2022,0000482105,"3,347.28",Revenue,WaterPlus 4191231371 Worden Park,0
South Ribble Borough Council,http://statistics.data.gov.uk/id/local-authority/30UE,Open Spaces,Water Charges(Metered),2511,11/2 to 1/4/22,14/10/2022,0000482106,"7,027.83",Revenue,WaterPlus 4191231371 Worden Park,0
South Ribble Borough Council,http://statistics.data.gov.uk/id/local-authority/30UE,Central Support Services,Legal,4821,PROFESSIONAL SERVICES WITH REGARD TO THE TEST TRACK - NAME REDACTED - W15581-5,14/10/2022,0000482273,356.40,Revenue,WEIGHTMANS LLP,0
South Ribble Borough Council,http://statistics.data.gov.uk/id/local-authority/30UE,Recreation & Sport,Planned Annual Repair & Maintenance,2021,Continuation of hire of unit at Penwortham Holme as per NAME REDACTED for 2022/2023,28/10/2022,0000482509,420.00,Revenue,Wernick Hire Ltd,0
South Ribble Borough Council,http://statistics.data.gov.uk/id/local-authority/30UE,Central Support Services,Franked Post,4292,Ongoing mail delivery costs at South Ribble,21/10/2022,0000482076,463.10,Revenue,WHISTL  UK LTD,0
South Ribble Borough Council,http://statistics.data.gov.uk/id/local-authority/30UE,Central Support Services,Franked Post,4292,Ongoing mail delivery costs at South Ribble,21/10/2022,0000482142,317.14,Revenue,WHISTL  UK LTD,0
South Ribble Borough Council,http://statistics.data.gov.uk/id/local-authority/30UE,Central Support Services,Franked Post,4292,Ongoing mail delivery costs at South Ribble,21/10/2022,0000482164,322.57,Revenue,WHISTL  UK LTD,0
South Ribble Borough Council,http://statistics.data.gov.uk/id/local-authority/30UE,Central Support Services,Franked Post,4292,Ongoing mail delivery costs at South Ribble,21/10/2022,0000482231,549.00,Revenue,WHISTL  UK LTD,0
South Ribble Borough Council,http://statistics.data.gov.uk/id/local-authority/30UE,Central Support Services,Franked Post,4292,Ongoing mail delivery costs at South Ribble,21/10/2022,0000482326,473.56,Revenue,WHISTL  UK LTD,0
South Ribble Borough Council,http://statistics.data.gov.uk/id/local-authority/30UE,Central Support Services,Franked Post,4292,Ongoing mail delivery costs at South Ribble,28/10/2022,0000482545,313.34,Revenue,WHISTL  UK LTD,0
South Ribble Borough Council,http://statistics.data.gov.uk/id/local-authority/30UE,Development Control,Consultancy Fees,4541,Bee Lane Bridge Improvements - Technical Note,14/10/2022,0000482040,"3,000.00",Revenue,WSP UK Ltd,0
